fUSD/lending_fUSD_20250610
["ID","MTS","AMOUNT","RATE_DAILY","PERIOD"]
[365180249,1749521433426,-151.0,0.00016388,2]
[365180251,1749521433436,-151.840323,0.00016388,2]
[365180253,1749521433446,-151.0,0.00016388,2]
[365180255,1749521433456,-151.0,0.00016388,2]
[365180257,1749521433466,-2424.1717133,0.00016389,2]
[365180259,1749521433476,-8181.7532146,0.00016389,2]
[365180261,1749521433489,-11712.133,0.00016389,2]
[365180263,1749521433498,-151.0,0.00016389,2]
[365180265,1749521433509,-151.0,0.00016389,2]
[365180267,1749521433519,-15050.71277815,0.00016392,2]
[365180269,1749521433530,-767.86466367,0.00016393,2]
[365180271,1749521433544,-7810.56304664,0.00016394,2]
[365180274,1749521433562,-7240.14973151,0.00016394,2]
[365180276,1749521433574,-2850.16981504,0.00016394,2]
[365180278,1749521433584,-43757.87739194,0.00016394,2]
[365180279,1749521433594,-21242.4073984,0.00016395,2]
[365180281,1749521433605,-152.0,0.00016419,2]
[365180283,1749521433618,-986.47890745,0.0001642,2]
[365180285,1749521433629,-151.0,0.00016428,2]
[365180288,1749521433641,-296.669153,0.00016428,2]
[365180289,1749521433653,-152.299803,0.00016428,2]
[365180291,1749521433663,-151.0,0.00016428,2]
[365180293,1749521433673,-151.0,0.00016428,2]
[365180295,1749521433683,-646.143134,0.00016428,2]
[365180297,1749521433693,-225.232342,0.00016428,2]
[365180299,1749521433703,-646.143134,0.00016428,2]
[365180301,1749521433713,-225.232342,0.00016428,2]
[365180303,1749521433723,-151.0,0.00016428,2]
[365180305,1749521433733,-538.02585,0.00016428,2]
[365180307,1749521433744,-151.0,0.00016428,2]
[365180309,1749521433754,-538.02585,0.00016428,2]
[365180311,1749521433765,-151.0,0.00016428,2]
[365180313,1749521433775,-151.0,0.00016428,2]
[365180315,1749521433784,-151.0,0.00016428,2]
[365180317,1749521433795,-150.9587774,0.00016428,2]
[365180319,1749521433806,-276.72,0.00016428,2]
[365180320,1749521433816,-276.72,0.00016428,2]
[365180321,1749521433827,-276.72,0.00016428,2]
[365180322,1749521433838,-17349.18355365,0.00016437,2]
[365180323,1749521433848,-164.18237,0.00016437,2]
[365180324,1749521433859,-151.0,0.00016437,2]
[365180325,1749521433869,-181.364923,0.00016437,2]
[365180326,1749521433879,-151.0,0.00016437,2]
[365180327,1749521433890,-151.0,0.00016437,2]
[365180328,1749521433901,-153.423263,0.00016437,2]
[365180329,1749521433911,-151.0,0.00016437,2]
[365180330,1749521433921,-151.0,0.00016437,2]
[365180331,1749521433932,-151.0,0.00016437,2]
[365180332,1749521433942,-240.352003,0.00016437,2]
[365180333,1749521433951,-151.0,0.00016437,2]
[365180334,1749521433962,-240.352003,0.00016437,2]
[365180335,1749521433972,-151.0,0.00016437,2]
[365180336,1749521433982,-151.0,0.00016437,2]
[365180337,1749521433992,-151.0,0.00016437,2]
[365180338,1749521434002,-210.119645,0.00016437,2]
[365180339,1749521434013,-210.119645,0.00016437,2]
[365180340,1749521434023,-183.893042,0.00016437,2]
[365180341,1749521434033,-154.782564,0.00016437,2]
[365180342,1749521434043,-151.0,0.00016437,2]
[365180343,1749521434053,-151.76105,0.00016437,2]
[365180344,1749521434064,-286.058579,0.00016437,2]
[365180345,1749521434074,-286.058579,0.00016437,2]
[365180346,1749521434087,-151.0,0.00016437,2]
[365180347,1749521434098,-152.262268,0.00016437,2]
[365180348,1749521434109,-151.0,0.00016437,2]
[365180349,1749521434120,-153.632259,0.00016437,2]
[365180350,1749521434131,-151.0,0.00016437,2]
[365180351,1749521434141,-167.413206,0.00016437,2]
[365180352,1749521434152,-179.928249,0.00016437,2]
[365180353,1749521434162,-151.0,0.00016437,2]
[365180354,1749521434172,-151.0,0.00016437,2]
[365180355,1749521434182,-196.158836,0.00016437,2]
[365180356,1749521434192,-151.0,0.00016437,2]
[365180357,1749521434202,-151.0,0.00016437,2]
[365180358,1749521434212,-151.0,0.00016437,2]
[365180359,1749521434222,-151.0,0.00016437,2]
[365180360,1749521434232,-154.228826,0.00016437,2]
[365180361,1749521434243,-151.0,0.00016437,2]
[365180362,1749521434253,-151.0,0.00016437,2]
[365180363,1749521434263,-151.0,0.00016437,2]
[365180364,1749521434274,-151.0,0.00016437,2]
[365180365,1749521434284,-151.0,0.00016437,2]
[365180366,1749521434294,-151.0,0.00016437,2]
[365180367,1749521434304,-151.0,0.00016437,2]
[365180368,1749521434313,-151.0,0.00016437,2]
[365180369,1749521434322,-231.619144,0.00016437,2]
[365180370,1749521434331,-151.0,0.00016437,2]
[365180371,1749521434341,-151.0,0.00016437,2]
[365180372,1749521434349,-151.0,0.00016438,2]
[365180373,1749521434359,-151.0,0.00016438,2]
[365180374,1749521434369,-151.0,0.00016438,2]
[365180375,1749521434379,-151.0,0.00016438,2]
[365180376,1749521434389,-151.0,0.00016438,2]
[365180377,1749521434400,-151.0,0.00016438,2]
[365180378,1749521434411,-263.70847941,0.00016438,2]
[365180379,1749521434422,-151.0,0.00016438,2]
[365180380,1749521434433,-151.0,0.00016438,2]
[365180381,1749521434443,-151.0,0.00016438,2]
[365180382,1749521434454,-152.309005,0.00016438,2]
[365180383,1749521434464,-427.76805711,0.00016438,2]
[365180384,1749521434475,-153.820134,0.00016438,2]
[365180385,1749521434490,-151.0,0.00016438,2]
[365180386,1749521434501,-238.084063,0.00016438,2]
[365180387,1749521434511,-151.0,0.00016438,2]
[365180388,1749521434523,-490.0,0.00016438,2]
[365180389,1749521434534,-490.0,0.00016438,2]
[365180390,1749521434544,-256.985694,0.00016438,2]
[365180391,1749521434554,-3913.131973,0.00016438,2]
[365180392,1749521434564,-490.0,0.00016438,2]
[365180393,1749521434575,-371.79325281,0.00016438,2]
[365180394,1749521434585,-482.94483014,0.00016438,2]
[365180395,1749521434595,-3502.800766,0.00016438,2]
[365180396,1749521434605,-151.0,0.00016438,2]
[365180397,1749521434615,-157.316651,0.00016438,2]
[365180398,1749521434626,-151.0,0.00016438,2]
[365180399,1749521434636,-151.0,0.00016438,2]
[365180400,1749521434646,-151.0,0.00016438,2]
[365180401,1749521434656,-151.0,0.00016438,2]
[365180402,1749521434666,-151.0,0.00016438,2]
[365180403,1749521434676,-151.0,0.00016438,2]
[365180404,1749521434685,-151.0,0.00016438,2]
[365180405,1749521434695,-151.0,0.00016438,2]
[365180406,1749521434705,-151.0,0.00016438,2]
[365180407,1749521434714,-151.0,0.00016438,2]
[365180408,1749521434724,-151.0,0.00016438,2]
[365180409,1749521434733,-151.0,0.00016438,2]
[365180410,1749521434743,-151.0,0.00016438,2]
[365180411,1749521434752,-483.14986598,0.00016438,2]
[365180412,1749521434762,-151.0,0.00016438,2]
[365180413,1749521434771,-151.0,0.00016438,2]
[365180414,1749521434781,-151.0,0.00016438,2]
[365180415,1749521434791,-490.0,0.00016438,2]
[365180416,1749521434800,-151.0,0.00016438,2]
[365180417,1749521434810,-151.0,0.00016438,2]
[365180418,1749521434819,-490.0,0.00016438,2]
[365180419,1749521434830,-163.384512,0.00016438,2]
[365180420,1749521434840,-484.51965802,0.00016438,2]
[365180421,1749521434850,-490.0,0.00016438,2]
[365180422,1749521434860,-486.22650324,0.00016438,2]
[365180423,1749521434871,-462.99592832,0.00016438,2]
[365180424,1749521434881,-484.47405453,0.00016438,2]
[365180425,1749521434892,-532.68078241,0.00016438,2]
[365180426,1749521434903,-151.0,0.00016438,2]
[365180427,1749521434914,-151.0,0.00016438,2]
[365180428,1749521434925,-173.590728,0.00016438,2]
[365180429,1749521434935,-490.0,0.00016438,2]
[365180430,1749521434945,-166.06841,0.00016438,2]
[365180431,1749521434955,-490.0,0.00016438,2]
[365180432,1749521434965,-490.0,0.00016438,2]
[365180433,1749521434975,-482.71501698,0.00016438,2]
[365180434,1749521434984,-188.665354,0.00016438,2]
[365180435,1749521434994,-502.82216904,0.00016438,2]
[365180436,1749521435004,-152.182463,0.00016438,2]
[365180437,1749521435014,-153.087665,0.00016438,2]
[365180438,1749521435024,-490.0,0.00016438,2]
[365180439,1749521435034,-169.209458,0.00016438,2]
[365180440,1749521435044,-155.91779,0.00016438,2]
[365180441,1749521435054,-155.91779,0.00016438,2]
[365180442,1749521435063,-155.91779,0.00016438,2]
[365180443,1749521435073,-155.91779,0.00016438,2]
[365180444,1749521435083,-155.91779,0.00016438,2]
[365180445,1749521435093,-155.91779,0.00016438,2]
[365180446,1749521435103,-482.89938692,0.00016438,2]
[365180447,1749521435113,-155.91779,0.00016438,2]
[365180448,1749521435123,-155.91779,0.00016438,2]
[365180449,1749521435133,-155.91779,0.00016438,2]
[365180450,1749521435142,-155.91779,0.00016438,2]
[365180451,1749521435152,-161.726434,0.00016438,2]
[365180452,1749521435163,-155.91779,0.00016438,2]
[365180453,1749521435173,-155.91779,0.00016438,2]
[365180454,1749521435183,-155.91779,0.00016438,2]
[365180455,1749521435193,-155.91779,0.00016438,2]
[365180456,1749521435203,-155.91779,0.00016438,2]
[365180457,1749521435214,-155.91779,0.00016438,2]
[365180458,1749521435223,-155.91779,0.00016438,2]
[365180459,1749521435233,-493.84491062,0.00016438,2]
[365180460,1749521435243,-155.91779,0.00016438,2]
[365180461,1749521435253,-155.917782,0.00016438,2]
[365180462,1749521435262,-490.0,0.00016438,2]
[365180463,1749521435272,-490.0,0.00016438,2]
[365180464,1749521435283,-490.0,0.00016438,2]
[365180465,1749521435294,-506.37525688,0.00016438,2]
[365180466,1749521435304,-490.0,0.00016438,2]
[365180467,1749521435314,-539.27617727,0.00016438,2]
[365180468,1749521435324,-466.64662198,0.00016438,2]
[365180469,1749521435336,-490.0,0.00016438,2]
[365180470,1749521435348,-151.0,0.00016438,2]
[365180471,1749521435359,-151.0,0.00016438,2]
[365180472,1749521435370,-271.300492,0.00016438,2]
[365180473,1749521435381,-490.0,0.00016438,2]
[365180474,1749521435391,-151.0,0.00016438,2]
[365180475,1749521435401,-151.0,0.00016438,2]
[365180476,1749521435412,-151.652089,0.00016438,2]
[365180477,1749521435422,-490.0,0.00016438,2]
[365180478,1749521435433,-496.84899603,0.00016438,2]
[365180479,1749521435445,-491.21599792,0.00016438,2]
[365180480,1749521435456,-502.64636982,0.00016438,2]
[365180481,1749521435467,-595.18305996,0.00016438,2]
[365180482,1749521435478,-490.0,0.00016438,2]
[365180483,1749521435490,-493.16412282,0.00016438,2]
[365180484,1749521435502,-491.59264464,0.00016438,2]
[365180485,1749521435514,-483.82820499,0.00016438,2]
[365180486,1749521435525,-504.9830224,0.00016438,2]
[365180487,1749521435538,-487.21930332,0.00016438,2]
[365180488,1749521435549,-503.77442651,0.00016438,2]
[365180489,1749521435559,-487.76443035,0.00016438,2]
[365180490,1749521435570,-486.30635695,0.00016438,2]
[365180491,1749521435581,-485.78868374,0.00016438,2]
[365180492,1749521435592,-502.74873788,0.00016438,2]
[365180493,1749521435602,-490.0,0.00016438,2]
[365180494,1749521435615,-509.99367545,0.00016438,2]
[365180495,1749521435625,-151.0,0.00016438,2]
[365180496,1749521435635,-151.0,0.00016438,2]
[365180497,1749521435646,-153.442495,0.00016438,2]
[365180498,1749521435656,-490.0,0.00016438,2]
[365180499,1749521435667,-490.0,0.00016438,2]
[365180500,1749521435677,-359.40725921,0.00016438,2]
[365180501,1749521435688,-490.0,0.00016438,2]
[365180502,1749521435699,-488.12032336,0.00016438,2]
[365180503,1749521435709,-151.0,0.00016438,2]
[365180504,1749521435719,-152.915396,0.00016438,2]
[365180505,1749521435730,-490.0,0.00016438,2]
[365180506,1749521435741,-490.0,0.00016438,2]
[365180507,1749521435752,-487.93810719,0.00016438,2]
[365180508,1749521435762,-483.64424815,0.00016438,2]
[365180509,1749521435772,-490.0,0.00016438,2]
[365180510,1749521435782,-158.595758,0.00016438,2]
[365180511,1749521435792,-616.7124313,0.00016438,2]
[365180512,1749521435803,-151.0,0.00016438,2]
[365180513,1749521435814,-151.0,0.00016438,2]
[365180514,1749521435824,-151.0,0.00016438,2]
[365180515,1749521435834,-151.0,0.00016438,2]
[365180516,1749521435844,-151.0,0.00016438,2]
[365180517,1749521435855,-174.93785,0.00016438,2]
[365180518,1749521435867,-540.99327485,0.00016438,2]
[365180519,1749521435877,-490.0,0.00016438,2]
[365180520,1749521435888,-490.0,0.00016438,2]
[365180521,1749521435899,-506.48230389,0.00016438,2]
[365180522,1749521435910,-343.2742963,0.00016438,2]
[365180523,1749521435920,-333.33068127,0.00016438,2]
[365180524,1749521435931,-151.0,0.00016438,2]
[365180525,1749521435941,-151.0,0.00016438,2]
[365180526,1749521435952,-151.0,0.00016438,2]
[365180527,1749521435962,-151.0,0.00016438,2]
[365180528,1749521435973,-569.98857438,0.00016438,2]
[365180529,1749521435983,-151.0,0.00016438,2]
[365180530,1749521435994,-151.0,0.00016438,2]
[365180531,1749521436004,-151.0,0.00016438,2]
[365180532,1749521436014,-151.0,0.00016438,2]
[365180533,1749521436024,-151.0,0.00016438,2]
[365180534,1749521436035,-151.0,0.00016438,2]
[365180535,1749521436046,-151.0,0.00016438,2]
[365180536,1749521436056,-151.0,0.00016438,2]
[365180537,1749521436067,-151.0,0.00016438,2]
[365180538,1749521436078,-151.0,0.00016438,2]
[365180539,1749521436090,-151.0,0.00016438,2]
[365180540,1749521436100,-502.27069306,0.00016438,2]
[365180541,1749521436112,-151.0,0.00016438,2]
[365180542,1749521436124,-151.0,0.00016438,2]
[365180543,1749521436134,-278.979802,0.00016438,2]
[365180544,1749521436145,-151.0,0.00016438,2]
[365180545,1749521436156,-151.0,0.00016438,2]
[365180546,1749521436166,-151.0,0.00016438,2]
[365180547,1749521436177,-151.0,0.00016438,2]
[365180548,1749521436187,-614.21949404,0.00016438,2]
[365180549,1749521436198,-151.0,0.00016438,2]
[365180550,1749521436208,-151.0,0.00016438,2]
[365180551,1749521436219,-151.0,0.00016438,2]
[365180552,1749521436228,-151.0,0.00016438,2]
[365180553,1749521436239,-151.0,0.00016438,2]
[365180554,1749521436248,-151.0,0.00016438,2]
[365180555,1749521436257,-485.46658936,0.00016438,2]
[365180556,1749521436266,-291.522632,0.00016438,2]
[365180557,1749521436274,-152.232104,0.00016438,2]
[365180558,1749521436283,-490.0,0.00016438,2]
[365180559,1749521436292,-493.15253556,0.00016438,2]
[365180560,1749521436301,-495.67541001,0.00016438,2]
[365180561,1749521436311,-490.0,0.00016438,2]
[365180562,1749521436321,-488.81158475,0.00016438,2]
[365180563,1749521436332,-490.0,0.00016438,2]
[365180564,1749521436342,-483.70113345,0.00016438,2]
[365180565,1749521436352,-490.0,0.00016438,2]
[365180566,1749521436362,-490.0,0.00016438,2]
[365180567,1749521436372,-481.89789934,0.00016438,2]
[365180568,1749521436383,-474.63350498,0.00016438,2]
[365180569,1749521436394,-490.0,0.00016438,2]
[365180570,1749521436404,-469.6233308,0.00016438,2]
[365180571,1749521436414,-151.0,0.00016438,2]
[365180572,1749521436424,-193.647568,0.00016438,2]
[365180573,1749521436434,-474.11704381,0.00016438,2]
[365180574,1749521436446,-468.96915578,0.00016438,2]
[365180575,1749521436456,-443.57654444,0.00016438,2]
[365180576,1749521436467,-490.0,0.00016438,2]
[365180577,1749521436478,-469.5944965,0.00016438,2]
[365180578,1749521436492,-502.25779024,0.00016438,2]
[365180579,1749521436503,-483.05078896,0.00016438,2]
[365180580,1749521436513,-151.0,0.00016438,2]
[365180581,1749521436524,-482.2845857,0.00016438,2]
[365180582,1749521436535,-475.12410799,0.00016438,2]
[365180583,1749521436546,-468.91964328,0.00016438,2]
[365180584,1749521436556,-437.30926641,0.00016438,2]
[365180585,1749521436570,-470.44357272,0.00016438,2]
[365180586,1749521436581,-469.70579811,0.00016438,2]
[365180587,1749521436591,-489.10663782,0.00016438,2]
[365180588,1749521436602,-508.89348339,0.00016438,2]
[365180589,1749521436612,-490.0,0.00016438,2]
[365180590,1749521436623,-725.553972,0.00016438,2]
[365180591,1749521436633,-151.0,0.00016438,2]
[365180592,1749521436644,-151.0,0.00016438,2]
[365180593,1749521436655,-151.0,0.00016438,2]
[365180594,1749521436666,-151.710711,0.00016438,2]
[365180595,1749521436676,-490.0,0.00016438,2]
[365180596,1749521436687,-613.698207,0.00016438,2]
[365180597,1749521436698,-613.698207,0.00016438,2]
[365180598,1749521436708,-613.698207,0.00016438,2]
[365180599,1749521436719,-151.0,0.00016438,2]
[365180600,1749521436729,-613.698207,0.00016438,2]
[365180601,1749521436741,-151.0,0.00016438,2]
[365180602,1749521436752,-613.698207,0.00016438,2]
[365180603,1749521436761,-490.0,0.00016438,2]
[365180604,1749521436772,-151.0,0.00016438,2]
[365180605,1749521436782,-613.698207,0.00016438,2]
[365180606,1749521436793,-151.0,0.00016438,2]
[365180607,1749521436803,-613.698207,0.00016438,2]
[365180608,1749521436813,-151.0,0.00016438,2]
[365180609,1749521436823,-613.698207,0.00016438,2]
[365180610,1749521436834,-151.0,0.00016438,2]
[365180611,1749521436844,-613.698207,0.00016438,2]
[365180612,1749521436854,-613.698207,0.00016438,2]
[365180613,1749521436864,-151.0,0.00016438,2]
[365180614,1749521436874,-613.698207,0.00016438,2]
[365180615,1749521436884,-613.698207,0.00016438,2]
[365180616,1749521436894,-474.72799257,0.00016438,2]
[365180617,1749521436904,-490.0,0.00016438,2]
[365180618,1749521436914,-151.0,0.00016438,2]
[365180619,1749521436924,-613.698207,0.00016438,2]
[365180620,1749521436934,-613.698207,0.00016438,2]
[365180621,1749521436944,-151.0,0.00016438,2]
[365180622,1749521436954,-613.698207,0.00016438,2]
[365180623,1749521436964,-151.0,0.00016438,2]
[365180624,1749521436975,-613.698207,0.00016438,2]
[365180625,1749521436985,-152.213465,0.00016438,2]
[365180626,1749521436995,-613.698207,0.00016438,2]
[365180627,1749521437005,-613.698207,0.00016438,2]
[365180628,1749521437015,-613.698207,0.00016438,2]
[365180629,1749521437026,-490.0,0.00016438,2]
[365180630,1749521437036,-613.69821404,0.00016438,2]
[365180631,1749521437047,-508.8726262,0.00016438,2]
[365180632,1749521437057,-483.05134849,0.00016438,2]
[365180633,1749521437068,-523.05468219,0.00016438,2]
[365180634,1749521437079,-490.0,0.00016438,2]
[365180635,1749521437090,-312.49548916,0.00016438,2]
[365180636,1749521437100,-490.0,0.00016438,2]
[365180637,1749521437111,-490.0,0.00016438,2]
[365180638,1749521437122,-490.0,0.00016438,2]
[365180639,1749521437133,-490.0,0.00016438,2]
[365180640,1749521437143,-490.0,0.00016438,2]
[365180641,1749521437153,-161.511675,0.00016438,2]
[365180642,1749521437163,-490.0,0.00016438,2]
[365180643,1749521437174,-490.0,0.00016438,2]
[365180644,1749521437183,-490.0,0.00016438,2]
[365180645,1749521437193,-490.0,0.00016438,2]
[365180646,1749521437203,-490.0,0.00016438,2]
[365180647,1749521437213,-151.0,0.00016438,2]
[365180648,1749521437227,-151.0,0.00016438,2]
[365180649,1749521437238,-490.0,0.00016438,2]
[365180650,1749521437248,-151.0,0.00016438,2]
[365180651,1749521437258,-157.482517,0.00016438,2]
[365180652,1749521437268,-151.0,0.00016438,2]
[365180653,1749521437277,-151.0,0.00016438,2]
[365180654,1749521437288,-151.0,0.00016438,2]
[365180655,1749521437298,-151.0,0.00016438,2]
[365180656,1749521437308,-151.0,0.00016438,2]
[365180657,1749521437318,-187.036662,0.00016438,2]
[365180658,1749521437329,-477.34858921,0.00016438,2]
[365180659,1749521437339,-151.0,0.00016438,2]
[365180660,1749521437349,-490.0,0.00016438,2]
[365180661,1749521437359,-151.0,0.00016438,2]
[365180662,1749521437370,-420.0,0.00016438,2]
[365180663,1749521437380,-490.0,0.00016438,2]
[365180664,1749521437390,-151.0,0.00016438,2]
[365180665,1749521437401,-151.0,0.00016438,2]
[365180666,1749521437411,-156.013776,0.00016438,2]
[365180667,1749521437421,-490.0,0.00016438,2]
[365180668,1749521437432,-490.0,0.00016438,2]
[365180669,1749521437442,-194.56451737,0.00016438,2]
[365180670,1749521437452,-490.0,0.00016438,2]
[365180671,1749521437462,-465.50674365,0.00016438,2]
[365180672,1749521437472,-490.0,0.00016438,2]
[365180673,1749521437483,-473.17669057,0.00016438,2]
[365180674,1749521437497,-489.9045085,0.00016438,2]
[365180675,1749521437507,-490.0,0.00016438,2]
[365180676,1749521437518,-490.0,0.00016438,2]
[365180677,1749521437528,-490.0,0.00016438,2]
[365180678,1749521437539,-152.688227,0.00016438,2]
[365180679,1749521437550,-490.0,0.00016438,2]
[365180680,1749521437565,-490.0,0.00016438,2]
[365180681,1749521437575,-490.0,0.00016438,2]
[365180682,1749521437586,-490.0,0.00016438,2]
[365180683,1749521437598,-490.0,0.00016438,2]
[365180684,1749521437609,-483.2203209,0.00016438,2]
[365180685,1749521437621,-490.0,0.00016438,2]
[365180686,1749521437631,-490.0,0.00016438,2]
[365180687,1749521437642,-490.0,0.00016438,2]
[365180688,1749521437653,-490.0,0.00016438,2]
[365180689,1749521437664,-470.8873823,0.00016438,2]
[365180690,1749521437675,-490.0,0.00016438,2]
[365180691,1749521437685,-490.0,0.00016438,2]
[365180692,1749521437696,-490.0,0.00016438,2]
[365180693,1749521437706,-428.41083359,0.00016438,2]
[365180694,1749521437716,-521.69084853,0.00016438,2]
[365180695,1749521437726,-606.05,0.00016438,2]
[365180696,1749521437736,-250.0,0.00016438,2]
[365180697,1749521437747,-486.09335955,0.00016438,2]
[365180698,1749521437763,-321.38704494,0.00016438,2]
[365180699,1749521437773,-152.664304,0.00016438,2]
[365180700,1749521437783,-433.36840135,0.00016438,2]
[365180701,1749521437795,-490.0,0.00016438,2]
[365180702,1749521437807,-490.0,0.00016438,2]
[365180703,1749521437818,-490.0,0.00016438,2]
[365180704,1749521437828,-475.45018316,0.00016438,2]
[365180705,1749521437840,-490.0,0.00016438,2]
[365180706,1749521437851,-429.53059384,0.00016438,2]
[365180707,1749521437863,-490.0,0.00016438,2]
[365180708,1749521437874,-444.01014322,0.00016438,2]
[365180709,1749521437885,-490.0,0.00016438,2]
[365180710,1749521437895,-490.0,0.00016438,2]
[365180711,1749521437906,-496.1378756,0.00016438,2]
[365180712,1749521437917,-490.0,0.00016438,2]
[365180713,1749521437927,-490.0,0.00016438,2]
[365180714,1749521437939,-490.0,0.00016438,2]
[365180715,1749521437949,-490.0,0.00016438,2]
[365180719,1749521437962,-434.15714867,0.00016438,2]
[365180720,1749521438219,-490.0,0.00016438,2]
[365180721,1749521438230,-490.0,0.00016438,2]
[365180722,1749521438240,-490.0,0.00016438,2]
[365180723,1749521438250,-490.0,0.00016438,2]
[365180724,1749521438259,-151.0,0.00016438,2]
[365180725,1749521438269,-151.0,0.00016438,2]
[365180726,1749521438279,-151.0,0.00016438,2]
[365180727,1749521438289,-151.0,0.00016438,2]
[365180728,1749521438299,-490.0,0.00016438,2]
[365180729,1749521438309,-151.0,0.00016438,2]
[365180730,1749521438318,-499.31089741,0.00016438,2]
[365180731,1749521438329,-151.0,0.00016438,2]
[365180732,1749521438338,-264.393606,0.00016438,2]
[365180733,1749521438348,-151.0,0.00016438,2]
[365180734,1749521438358,-160.753763,0.00016438,2]
[365180735,1749521438370,-490.0,0.00016438,2]
[365180736,1749521438380,-420.0,0.00016438,2]
[365180737,1749521438390,-490.0,0.00016438,2]
[365180738,1749521438400,-484.07938032,0.00016438,2]
[365180739,1749521438410,-490.0,0.00016438,2]
[365180740,1749521438419,-158.934018,0.00016438,2]
[365180741,1749521438429,-158.934018,0.00016438,2]
[365180742,1749521438441,-158.934018,0.00016438,2]
[365180743,1749521438450,-427.85842621,0.00016438,2]
[365180744,1749521438460,-158.934018,0.00016438,2]
[365180745,1749521438469,-158.934018,0.00016438,2]
[365180746,1749521438479,-490.0,0.00016438,2]
[365180747,1749521438492,-490.0,0.00016438,2]
[365180748,1749521438502,-490.0,0.00016438,2]
[365180749,1749521438511,-158.934018,0.00016438,2]
[365180750,1749521438520,-158.934018,0.00016438,2]
[365180751,1749521438530,-490.0,0.00016438,2]
[365180752,1749521438541,-158.934018,0.00016438,2]
[365180753,1749521438550,-158.934018,0.00016438,2]
[365180754,1749521438560,-158.934018,0.00016438,2]
[365180755,1749521438570,-158.934018,0.00016438,2]
[365180756,1749521438580,-490.0,0.00016438,2]
[365180757,1749521438590,-490.0,0.00016438,2]
[365180759,1749521438599,-158.934018,0.00016438,2]
[365180761,1749521438608,-158.934018,0.00016438,2]
[365180763,1749521438619,-467.57740923,0.00016438,2]
[365180764,1749521438629,-151.0,0.00016438,2]
[365180765,1749521438639,-158.934018,0.00016438,2]
[365180766,1749521438648,-152.999405,0.00016438,2]
[365180767,1749521438658,-158.934018,0.00016438,2]
[365180768,1749521438667,-158.934018,0.00016438,2]
[365180769,1749521438677,-158.934018,0.00016438,2]
[365180770,1749521438687,-490.0,0.00016438,2]
[365180771,1749521438697,-490.0,0.00016438,2]
[365180772,1749521438706,-520.44983961,0.00016438,2]
[365180773,1749521438716,-158.934018,0.00016438,2]
[365180774,1749521438725,-158.934018,0.00016438,2]
[365180775,1749521438734,-490.0,0.00016438,2]
[365180776,1749521438743,-158.934008,0.00016438,2]
[365180777,1749521438753,-490.0,0.00016438,2]
[365180778,1749521438762,-490.0,0.00016438,2]
[365180779,1749521438771,-270.93261054,0.00016438,2]
[365180780,1749521438780,-469.53039362,0.00016438,2]
[365180781,1749521438790,-490.0,0.00016438,2]
[365180782,1749521438799,-490.0,0.00016438,2]
[365180783,1749521438809,-490.0,0.00016438,2]
[365180784,1749521438818,-490.0,0.00016438,2]
[365180785,1749521438827,-490.0,0.00016438,2]
[365180786,1749521438837,-490.0,0.00016438,2]
[365180787,1749521438846,-490.0,0.00016438,2]
[365180788,1749521438855,-490.0,0.00016438,2]
[365180789,1749521438865,-490.0,0.00016438,2]